fUST/lending_fUST_20250219
["ID","MTS","AMOUNT","RATE_DAILY","PERIOD"]
[353565460,1739916647822,-1971.0,0.00015078,2]
[353565461,1739916647831,-2289.0,0.00015078,2]
[353565462,1739916647842,-364.6495932,0.00015095,2]
[353565463,1739916647855,-977.95,0.00015095,2]
[353565464,1739916647864,-981.37,0.00015095,2]
[353565465,1739916647874,-500.0,0.00015095,2]
[353565466,1739916647884,-564.75,0.00015095,2]
[353565467,1739916647895,-1138.19,0.00015095,2]
[353565468,1739916647904,-789.94,0.00015095,2]
[353565469,1739916647914,-652.07,0.00015095,2]
[353565470,1739916647926,-500.0,0.00015095,2]
[353565471,1739916647935,-769.61,0.00015095,2]
[353565472,1739916647946,-1897.62,0.00015095,2]
[353565473,1739916647956,-715.19,0.00015095,2]
[353565474,1739916647966,-993.16,0.00015095,2]
[353565475,1739916647976,-845.29,0.00015095,2]
[353565476,1739916647986,-8254.89,0.00015095,2]
[353565477,1739916647996,-1330.1,0.00015095,2]
[353565478,1739916648006,-528.91,0.00015095,2]
[353565479,1739916648016,-553.81,0.00015095,2]
[353565480,1739916648026,-500.0,0.00015095,2]
[353565481,1739916648036,-1784.67,0.00015095,2]
[353565482,1739916648046,-534.58,0.00015095,2]
[353565483,1739916648057,-1587.19,0.00015095,2]
[353565484,1739916648067,-2220.53,0.00015095,2]
[353565485,1739916648078,-1108.63,0.00015095,2]
[353565486,1739916648089,-594.11,0.00015095,2]
[353565487,1739916648099,-870.43,0.00015095,2]
[353565488,1739916648110,-1695.98,0.00015095,2]
[353565489,1739916648120,-1567.55,0.00015095,2]
[353565490,1739916648130,-3331.96,0.00015095,2]
[353565491,1739916648140,-22230.83,0.00015095,2]
[353565492,1739916648150,-853.99,0.00015095,2]
[353565493,1739916648160,-687.31,0.00015095,2]
[353565494,1739916648254,-500.0,0.00015095,2]
[353565495,1739916648266,-954.77,0.00015095,2]
[353565496,1739916648276,-500.0,0.00015095,2]
[353565497,1739916648287,-799.04,0.00015095,2]
[353565498,1739916648298,-7501.03,0.00015095,2]
[353565499,1739916648309,-852.41,0.00015095,2]
[353565500,1739916648319,-1000.46332282,0.00015174,2]
[353565501,1739916648329,-977.95,0.00015178,2]
[353565502,1739916648340,-981.37,0.00015178,2]
[353565503,1739916648351,-500.0,0.00015178,2]
[353565504,1739916648361,-564.75,0.00015178,2]
[353565505,1739916648371,-1138.19,0.00015178,2]
[353565506,1739916648381,-789.94,0.00015178,2]
[353565507,1739916648391,-652.07,0.00015178,2]
[353565508,1739916648401,-412.32522058,0.00015178,2]
[353565509,1739916648410,-769.61,0.00015178,2]
[353565510,1739916648420,-1897.62,0.00015178,2]
[353565511,1739916648430,-715.19,0.00015178,2]
[353565512,1739916648440,-993.16,0.00015178,2]
[353565513,1739916648451,-845.29,0.00015178,2]
[353565514,1739916648462,-8254.89,0.00015178,2]
[353565515,1739916648472,-1330.1,0.00015178,2]
[353565516,1739916648483,-528.91,0.00015178,2]
[353565517,1739916648492,-553.81,0.00015178,2]
[353565518,1739916648502,-310.16180085,0.00015178,2]
[353565519,1739916648512,-1784.67,0.00015178,2]
[353565520,1739916648522,-534.58,0.00015178,2]
[353565521,1739916648533,-1587.19,0.00015178,2]
[353565522,1739916648544,-2220.53,0.00015178,2]
[353565523,1739916648555,-1108.63,0.00015178,2]
[353565524,1739916648566,-594.11,0.00015178,2]
[353565525,1739916648577,-870.43,0.00015178,2]
[353565526,1739916648587,-1695.98,0.00015178,2]
[353565527,1739916648599,-1567.55,0.00015178,2]
[353565528,1739916648609,-3331.96,0.00015178,2]
[353565529,1739916648620,-22230.83,0.00015178,2]
[353565530,1739916648631,-853.99,0.00015178,2]
[353565531,1739916648643,-687.31,0.00015178,2]
[353565532,1739916648654,-500.0,0.00015178,2]
[353565533,1739916648665,-954.77,0.00015178,2]
[353565534,1739916648676,-500.0,0.00015178,2]
[353565535,1739916648686,-799.04,0.00015178,2]
[353565536,1739916648697,-7501.03,0.00015178,2]
[353565537,1739916648707,-852.41,0.00015178,2]
[353565538,1739916648719,-977.95,0.0001526,2]
[353565539,1739916648729,-981.37,0.0001526,2]
[353565540,1739916648741,-500.0,0.0001526,2]
[353565541,1739916648752,-564.75,0.0001526,2]
[353565542,1739916648764,-1138.19,0.0001526,2]
[353565543,1739916648775,-789.94,0.0001526,2]
[353565544,1739916648786,-652.07,0.0001526,2]
[353565545,1739916648797,-769.61,0.0001526,2]
[353565546,1739916648809,-1897.62,0.0001526,2]
[353565547,1739916648820,-715.19,0.0001526,2]
[353565548,1739916648830,-993.16,0.0001526,2]
[353565549,1739916648842,-845.29,0.0001526,2]
[353565550,1739916648862,-8254.89,0.0001526,2]
[353565551,1739916648874,-1330.1,0.0001526,2]
[353565552,1739916648884,-528.91,0.0001526,2]
[353565553,1739916648895,-553.81,0.0001526,2]
[353565554,1739916648906,-1784.67,0.0001526,2]
[353565555,1739916648917,-534.58,0.0001526,2]
[353565556,1739916648927,-1587.19,0.0001526,2]
[353565557,1739916648938,-2220.53,0.0001526,2]
[353565558,1739916648949,-1108.63,0.0001526,2]
[353565559,1739916648959,-594.11,0.0001526,2]
[353565560,1739916648971,-870.43,0.0001526,2]
[353565561,1739916648982,-1695.98,0.0001526,2]
[353565562,1739916648992,-1567.55,0.0001526,2]
[353565563,1739916649004,-3331.96,0.0001526,2]
[353565564,1739916649015,-22230.83,0.0001526,2]
[353565565,1739916649026,-853.99,0.0001526,2]
[353565566,1739916649038,-687.31,0.0001526,2]
[353565567,1739916649049,-574.13917595,0.0001526,2]
[353565568,1739916649060,-954.77,0.0001526,2]
[353565569,1739916649072,-500.0,0.0001526,2]
[353565570,1739916649082,-799.04,0.0001526,2]
[353565571,1739916649093,-7501.03,0.0001526,2]
[353565572,1739916649104,-852.41,0.0001526,2]
[353565573,1739916649115,-587.0,0.0001527,2]
[353565574,1739916649125,-151.0,0.000153,2]
[353565575,1739916649136,-151.0,0.00015331,2]
[353565576,1739916649151,-977.95,0.00015342,2]
[353565577,1739916649163,-981.37,0.00015342,2]
[353565578,1739916649173,-500.0,0.00015342,2]
[353565579,1739916649184,-564.75,0.00015342,2]
[353565580,1739916649194,-1138.19,0.00015342,2]
[353565581,1739916649206,-789.94,0.00015342,2]
[353565582,1739916649219,-652.07,0.00015342,2]
[353565583,1739916649230,-769.61,0.00015342,2]
[353565584,1739916649242,-1897.62,0.00015342,2]
[353565585,1739916649253,-715.19,0.00015342,2]
[353565586,1739916649264,-993.16,0.00015342,2]
[353565587,1739916649276,-845.29,0.00015342,2]
[353565588,1739916649288,-8254.89,0.00015342,2]
[353565589,1739916649299,-1330.1,0.00015342,2]
[353565590,1739916649311,-528.91,0.00015342,2]
[353565591,1739916649324,-553.81,0.00015342,2]
[353565592,1739916649335,-1784.67,0.00015342,2]
[353565593,1739916649346,-534.58,0.00015342,2]
[353565594,1739916649357,-1587.19,0.00015342,2]
[353565595,1739916649369,-2220.53,0.00015342,2]
[353565596,1739916649380,-1108.63,0.00015342,2]
[353565597,1739916649391,-594.11,0.00015342,2]
[353565598,1739916649412,-870.43,0.00015342,2]
[353565599,1739916649425,-1695.98,0.00015342,2]
[353565600,1739916649436,-1567.55,0.00015342,2]
[353565601,1739916649446,-3331.96,0.00015342,2]
[353565602,1739916649457,-22230.83,0.00015342,2]
[353565603,1739916649467,-853.99,0.00015342,2]
[353565604,1739916649479,-687.31,0.00015342,2]
[353565605,1739916649490,-954.77,0.00015342,2]
[353565606,1739916649502,-500.0,0.00015342,2]
[353565607,1739916649514,-799.04,0.00015342,2]
[353565608,1739916649526,-7501.03,0.00015342,2]
[353565609,1739916649537,-852.41,0.00015342,2]
[353565610,1739916649547,-1008.60259608,0.00015421,2]
[353565611,1739916649559,-1000.0,0.00015421,2]
[353565612,1739916649570,-977.95,0.00015424,2]
[353565613,1739916649582,-981.37,0.00015424,2]
[353565614,1739916649593,-343.16267921,0.00015424,2]
[353565615,1739916649605,-564.75,0.00015424,2]
[353565616,1739916649616,-1138.19,0.00015424,2]
[353565617,1739916649627,-789.94,0.00015424,2]
[353565618,1739916649638,-652.07,0.00015424,2]
[353565619,1739916649651,-769.61,0.00015424,2]
[353565620,1739916649661,-1897.62,0.00015424,2]
[353565621,1739916649672,-715.19,0.00015424,2]
[353565622,1739916649683,-993.16,0.00015424,2]
[353565623,1739916649693,-845.29,0.00015424,2]
[353565624,1739916649702,-8254.89,0.00015424,2]
[353565625,1739916649714,-1330.1,0.00015424,2]
[353565626,1739916649724,-528.91,0.00015424,2]
[353565627,1739916649733,-553.81,0.00015424,2]
[353565628,1739916649742,-1784.67,0.00015424,2]
[353565629,1739916649751,-534.58,0.00015424,2]
[353565630,1739916649761,-1587.19,0.00015424,2]
[353565631,1739916649771,-2220.53,0.00015424,2]
[353565632,1739916649782,-1108.63,0.00015424,2]
[353565633,1739916649792,-594.11,0.00015424,2]
[353565634,1739916649802,-870.43,0.00015424,2]
[353565635,1739916649811,-1695.98,0.00015424,2]
[353565636,1739916649821,-1567.55,0.00015424,2]
[353565637,1739916649830,-3331.96,0.00015424,2]
[353565638,1739916649840,-22230.83,0.00015424,2]
[353565639,1739916649853,-853.99,0.00015424,2]
[353565640,1739916649864,-687.31,0.00015424,2]
[353565641,1739916649874,-954.77,0.00015424,2]
[353565642,1739916649884,-500.0,0.00015424,2]
[353565643,1739916649896,-799.04,0.00015424,2]
[353565644,1739916649906,-7501.03,0.00015424,2]
[353565645,1739916649916,-852.41,0.00015424,2]
[353565646,1739916649927,-977.95,0.00015506,2]
[353565647,1739916649938,-981.37,0.00015506,2]
[353565648,1739916649947,-564.75,0.00015506,2]
[353565649,1739916649955,-1138.19,0.00015506,2]
[353565650,1739916649966,-789.94,0.00015506,2]
[353565651,1739916649974,-652.07,0.00015506,2]
[353565652,1739916649983,-769.61,0.00015506,2]
[353565653,1739916649993,-1897.62,0.00015506,2]
[353565654,1739916650003,-715.19,0.00015506,2]
[353565655,1739916650012,-993.16,0.00015506,2]
[353565656,1739916650022,-845.29,0.00015506,2]
[353565657,1739916650032,-8254.89,0.00015506,2]
[353565658,1739916650041,-1330.1,0.00015506,2]
[353565659,1739916650051,-528.91,0.00015506,2]
[353565660,1739916650061,-553.81,0.00015506,2]
[353565661,1739916650071,-1784.67,0.00015506,2]
[353565662,1739916650081,-534.58,0.00015506,2]
[353565663,1739916650091,-1587.19,0.00015506,2]
[353565664,1739916650100,-2220.53,0.00015506,2]
[353565665,1739916650111,-1108.63,0.00015506,2]
[353565666,1739916650121,-594.11,0.00015506,2]
[353565667,1739916650130,-870.43,0.00015506,2]
[353565668,1739916650140,-1695.98,0.00015506,2]
[353565669,1739916650151,-1567.55,0.00015506,2]
[353565670,1739916650161,-3331.96,0.00015506,2]
[353565671,1739916650171,-22230.83,0.00015506,2]
[353565672,1739916650181,-853.99,0.00015506,2]
[353565673,1739916650192,-687.31,0.00015506,2]
[353565674,1739916650201,-954.77,0.00015506,2]
[353565675,1739916650211,-545.04026446,0.00015506,2]
[353565676,1739916650294,-799.04,0.00015506,2]
[353565677,1739916650305,-7501.03,0.00015506,2]
[353565678,1739916650315,-852.41,0.00015506,2]
[353565679,1739916650324,-500.0,0.00015534,2]
[353565680,1739916650334,-977.9939727,0.00015589,2]
[353565681,1739916650343,-981.52767682,0.00015589,2]
[353565682,1739916650353,-564.85718282,0.00015589,2]
[353565683,1739916650363,-1138.40290817,0.00015589,2]
[353565684,1739916650373,-790.01264383,0.00015589,2]
[353565685,1739916650383,-652.14270332,0.00015589,2]
[353565686,1739916650393,-769.66444075,0.00015589,2]
[353565687,1739916650403,-1897.82989862,0.00015589,2]
[353565688,1739916650413,-715.21745205,0.00015589,2]
[353565689,1739916650423,-993.23198647,0.00015589,2]
[353565690,1739916650433,-845.31484743,0.00015589,2]
[353565691,1739916650442,-8254.93223969,0.00015589,2]
[353565692,1739916650452,-1330.16116204,0.00015589,2]
[353565693,1739916650462,-529.12488268,0.00015589,2]
[353565694,1739916650472,-553.85607322,0.00015589,2]
[353565695,1739916650481,-1784.6703497,0.00015589,2]
[353565696,1739916650490,-534.64915093,0.00015589,2]
[353565697,1739916650500,-1587.32695954,0.00015589,2]
[353565698,1739916650509,-2220.62500243,0.00015589,2]
[353565699,1739916650519,-1108.63080018,0.00015589,2]
[353565700,1739916650528,-594.16129887,0.00015589,2]
[353565701,1739916650537,-870.46599102,0.00015589,2]
[353565702,1739916650547,-1695.99810767,0.00015589,2]
[353565703,1739916650556,-1567.6070493,0.00015589,2]
[353565704,1739916650566,-3331.98659082,0.00015589,2]
[353565705,1739916650575,-22231.0141,0.00015589,2]
[353565706,1739916650586,-854.17026195,0.00015589,2]
[353565707,1739916650595,-687.32105563,0.00015589,2]
[353565708,1739916650605,-954.8,0.00015589,2]
[353565709,1739916650615,-799.18889295,0.00015589,2]
[353565710,1739916650626,-7501.03775052,0.00015589,2]
[353565711,1739916650635,-852.49888527,0.00015589,2]
[353565712,1739916650646,-1994.89,0.000156,2]
[353565713,1739916650655,-400.0,0.00015775,2]
[353565714,1739916650665,-499.0,0.00016164,2]
[353565715,1739916650675,-153699.86627603,0.000162,2]
[353565716,1739916650684,-500.0,0.00016438,2]
[353565717,1739916650693,-500.0,0.00016438,2]
[353565718,1739916650703,-151.0,0.00016588,2]
[353565719,1739916650713,-151.0,0.00016588,2]
[353565720,1739916650722,-151.0,0.00016588,2]
[353565721,1739916650731,-1100.830038,0.00016588,2]
[353565722,1739916650741,-1100.830038,0.00016588,2]
[353565723,1739916650751,-3394.435851,0.00016588,2]
[353565724,1739916650760,-3394.435851,0.00016588,2]
[353565725,1739916650770,-1160.065526,0.00016588,2]
[353565726,1739916650780,-1160.065526,0.00016588,2]
[353565727,1739916650789,-452.985385,0.00016588,2]
[353565728,1739916650799,-452.985385,0.00016588,2]
[353565729,1739916650809,-151.0,0.00016588,2]
[353565730,1739916650819,-151.0,0.00016588,2]
[353565731,1739916650829,-151.0,0.00016588,2]
[353565732,1739916650839,-160.564435,0.00016588,2]
[353565733,1739916650851,-160.564435,0.00016588,2]
[353565734,1739916650860,-794.352216,0.00016588,2]
[353565735,1739916650869,-794.352216,0.00016588,2]
[353565736,1739916650879,-216.0000907,0.0001673,2]
[353565737,1739916650888,-154.7234452,0.0001673,2]
[353565738,1739916650898,-154.7234452,0.0001673,2]
[353565739,1739916650907,-823.0,0.00016751,2]
[353565740,1739916650917,-153699.866276,0.00016787,2]
[353565741,1739916650927,-26789.49,0.000169,2]
[353565742,1739916650937,-500.0,0.00016904,2]
[353565743,1739916650947,-344.0,0.0001699,2]
[353565744,1739916650956,-934.0,0.000171,2]
[353565745,1739916650965,-310.6491906,0.00017178,2]
[353565746,1739916650975,-431.6152744,0.00017178,2]
[353565747,1739916650985,-418.8992869,0.00017178,2]
[353565748,1739916650993,-194.3337172,0.00017452,2]
[353565749,1739916651003,-153.0,0.00017452,2]
[353565750,1739916651012,-153.0,0.00017452,2]
[353565751,1739916651020,-499.0,0.00017534,4]
[353565752,1739916651029,-2000.0,0.00017552,30]
[353565753,1739916651038,-2000.0,0.00017552,30]
[353565754,1739916651048,-843.599999,0.00017552,30]
[353565755,1739916651057,-154.7234452,0.00017552,2]
[353565756,1739916651066,-154.2075218,0.00017552,2]
[353565757,1739916651076,-992.3152215,0.00017638,2]
[353565758,1739916651084,-22618.90496927,0.0001782,2]
[353565759,1739916651092,-396.0,0.00017829,2]
[353565760,1739916651100,-153.6,0.000179,31]
[353565761,1739916651108,-153.6,0.000179,31]
[353565762,1739916651115,-153.6,0.000179,31]
[353565763,1739916651122,-153.6,0.000179,31]
[353565764,1739916651129,-153.6,0.000179,31]
[353565765,1739916651136,-153.6,0.000179,31]
[353565766,1739916651142,-153.6,0.000179,31]
[353565767,1739916651152,-153699.866276,0.000179,2]
[353565768,1739916651161,-500.0,0.00017973,2]
[353565769,1739916651168,-500.0,0.00017973,2]
[353565770,1739916651175,-509.98868725,0.00017998,2]
[353565771,1739916651183,-16297.74054299,0.00018,5]
[353565772,1739916651192,-129891.19390565,0.00018,5]
[353565773,1739916651201,-713313.53955343,0.00018,15]
[353565774,1739916651214,-4881.41288999,0.00018,15]
[353565775,1739916651226,-48959.18606962,0.00018,15]
[353565776,1739916651237,-4861.31319007,0.00018,15]
[353565777,1739916651248,-5610.71343338,0.00018,15]
[353565778,1739916651284,-261.2219968,0.00012973,2]
[353565779,1739916651293,-83314.37818362,0.00018,15]
[353565780,1739916651303,-1002247.67635056,0.00018,15]
[353565781,1739916651312,-155.0,0.00018,30]
[353565782,1739916651322,-1592525.2564751,0.00018,15]
[353565783,1739916651339,-19009.4,0.00018,15]
[353565784,1739916651373,-119119.5392543,0.00018,15]
[353565785,1739916651431,-919.299998,0.0001368,2]
[353565786,1739916651443,-2000.0,0.0001368,2]
[353565787,1739916651455,-80.700002,0.0001368,2]
[353565788,1739916651466,-500.0,0.00013698,2]
[353565789,1739916651476,-5899.8241288,0.00018,15]
[353565790,1739916651520,-64.159,0.00018,15]
[353565791,1739916651532,-1909.23,0.00018,15]
[353565792,1739916651565,-500.0,0.00013698,2]
[353565793,1739916651575,-4513.82529657,0.00018,15]
[353565794,1739916651587,-11157.4579386,0.00018,15]
[353565795,1739916651598,-3522.10913016,0.00018,15]
[353565796,1739916651611,-403.9115668,0.00018,15]
[353565797,1739916651622,-535.84346821,0.00018,15]
[353565798,1739916651634,-3480.6731781,0.00018,15]
[353565799,1739916651646,-2952.96111049,0.00018,15]
[353565800,1739916651658,-7736.20951779,0.00018,15]
[353565802,1739916696996,400.0,9.041e-05,2]
[353565817,1739917643127,-300.0,0.00010847,2]
[353565818,1739917643150,-376.4375501,0.00010859,2]
[353565819,1739917648137,-499.90047769,0.00010859,2]
[353565820,1739917648158,-300.0,0.00010957,2]
[353565821,1739917648180,-500.0,0.00010958,2]
[353565822,1739917648204,-500.0,0.00010958,2]
[353565823,1739917648226,-500.0,0.00010958,2]
[353565824,1739917648251,-500.0,0.00010958,2]
[353565825,1739917648272,-500.0,0.00010958,2]
[353565826,1739917648295,-500.0,0.00010958,2]
[353565827,1739917648317,-500.0,0.00010958,2]
[353565828,1739917648338,-500.0,0.00010958,2]
[353565829,1739917648361,-500.0,0.00010958,2]
[353565830,1739917648385,-500.0,0.00010958,2]
[353565831,1739917648409,-409.10177839,0.00010958,2]
[353565832,1739917648434,-327.53441428,0.00010958,2]
[353565833,1739917648458,-1528.7741002,0.00010959,2]
[353565834,1739917651102,-499.90047769,0.0001075,2]
[353565835,1739917651126,-5603.3771319,0.00010959,2]
[353565836,1739917653093,-836.87639613,0.00010959,2]
[353565845,1739917709153,276.96341609,0.0001,2]
[353565850,1739917719239,1000.0,0.0001,2]
[353565859,1739917735429,400.0,9.041e-05,2]
[353565865,1739917749203,-9302.20087352,0.00010849,2]
[353565866,1739917749226,-300.0,0.00010958,2]
[353565867,1739917749251,-455.46237177,0.00010959,2]
[353565868,1739917749273,-10251.34,0.00010959,2]
[353565869,1739917749293,-8542.78,0.00010959,2]
[353565870,1739917749314,-8542.78,0.00010959,2]
[353565871,1739917749335,-5695.19,0.00010959,2]
[353565872,1739917749356,-5695.19,0.00010959,2]
[353565873,1739917749376,-3796.79,0.00010959,2]
[353565874,1739917749395,-3163.99,0.00010959,2]
[353565875,1739917749416,-2636.66,0.00010959,2]
[353565876,1739917749439,-2197.22,0.00010959,2]
[353565877,1739917749459,-1831.01,0.00010959,2]
[353565878,1739917749480,-3754.303,0.00010959,2]
[353565879,1739917749500,-330.01806385,0.00011,2]
[353565880,1739917749521,-420.0,0.00012042,2]
[353565881,1739917749542,-24900.0,0.00012164,2]
[353565882,1739917749562,-8589.92837942,0.000125,2]
[353565883,1739917749594,-2545.67849186,0.000125,2]
[353565884,1739917749616,-500.0,0.00012973,2]
[353565885,1739917749791,-137653.93882507,0.00013,2]
[353565886,1739917754136,-1525.85,0.00010959,2]
[353565887,1739917754156,-500.0,0.00012973,2]
[353565888,1739917754176,-500.0,0.00012973,2]
[353565889,1739917754196,-501.20867414,0.00012973,2]
[353565890,1739917754217,-500.0,0.00012973,2]
[353565891,1739917754243,-19448.19967246,0.00013,2]
[353565892,1739917761133,-30606.79942854,0.00013,2]
[353565893,1739917761155,-587.0,0.00013233,2]
[353565894,1739917761175,-41023.10538931,0.00013428,2]
[353565895,1739917762590,185.96447583,0.00012399,2]
[353565896,1739917763480,257.40438786,0.00010959,2]
[353565901,1739917772180,-712.89651569,0.00010959,2]
[353565935,1739917832318,-1109.82,0.00010959,2]
[353565937,1739917832328,-924.85,0.00010959,2]
[353565939,1739917832338,-770.71,0.00010959,2]
[353565940,1739917832348,-642.26,0.00010959,2]
[353565942,1739917832357,-64.03552417,0.00012399,2]
[353565944,1739917832367,-474.68361322,0.00012973,2]
[353565946,1739917832378,-25.31638678,0.00012973,2]
[353565947,1739917832387,-500.0,0.00012973,2]
[353565949,1739917832396,-152.16137129,0.00012973,2]
[353565950,1739917832406,-300.0,0.00013427,2]
[353565952,1739917832416,-58522.24623158,0.00013428,2]
[353565954,1739917832426,-22259.1525543,0.000135,2]
[353565956,1739917832436,-1000.0,0.00013521,2]
[353565958,1739917832445,-1000.0,0.00013521,2]
[353565960,1739917832454,-1000.0,0.00013521,2]
[353565961,1739917832464,-1000.0,0.00013521,2]
[353565963,1739917832474,-1000.60531167,0.00013521,2]
[353565964,1739917832483,-38637.26736223,0.00013598,2]
[353565966,1739917832493,-500.0,0.00013673,2]
[353565967,1739917832502,-500.0,0.00013673,2]
[353565968,1739917832512,-500.0,0.00013673,2]
[353565969,1739917832522,-500.0,0.00013673,2]
[353565970,1739917832532,-500.0,0.00013673,2]
[353565971,1739917832541,-500.0,0.00013673,2]
[353565972,1739917832551,-500.0,0.00013673,2]
[353565973,1739917832560,-501.99086354,0.00013673,2]
[353565974,1739917832570,-500.0,0.00013673,2]
[353565975,1739917832580,-500.0,0.00013673,2]
[353565976,1739917832591,-500.0,0.00013673,2]
[353565977,1739917832601,-632.83551401,0.00013673,2]
[353565978,1739917832610,-500.0,0.00013673,2]
[353565979,1739917832620,-500.0,0.00013673,2]
[353565980,1739917832629,-3000.0,0.0001368,2]
[353565981,1739917832638,-151.0,0.0001369,2]
[353565982,1739917832647,-160.05402309,0.0001369,2]
[353565983,1739917832657,-500.0,0.00013698,2]
[353565984,1739917832667,-500.0,0.00013698,2]
[353565985,1739917832677,-477.76868699,0.00013698,2]
[353565986,1739917832687,-502.36438095,0.00013698,2]
[353565987,1739917832696,-1108.6306074,0.00013698,4]
[353565988,1739917832706,-500.0,0.00013698,2]
[353565989,1739917832715,-500.0,0.00013698,2]
[353565990,1739917832726,-433.49874262,0.00013698,2]
[353565991,1739917832736,-500.0,0.00013698,2]
[353565992,1739917832745,-500.0,0.00013698,2]
[353565993,1739917832755,-507.36618061,0.00013698,2]
[353565994,1739917832764,-605.72072481,0.00013698,2]
[353565995,1739917832775,-500.0,0.00013698,2]
[353565996,1739917832784,-500.0,0.00013698,2]
[353565997,1739917832793,-500.0,0.00013698,2]
[353565998,1739917832802,-500.0,0.00013698,2]
[353565999,1739917832812,-500.0,0.00013698,2]
[353566000,1739917832822,-500.0,0.00013698,2]
[353566001,1739917832832,-500.0,0.00013698,2]
[353566002,1739917832842,-500.0,0.00013698,2]
[353566003,1739917832853,-500.0,0.00013698,2]
[353566004,1739917832863,-500.0,0.00013698,2]
[353566005,1739917832872,-502.77394469,0.00013698,2]
[353566006,1739917832881,-500.0,0.00013698,2]
[353566007,1739917832890,-453.27760459,0.00013698,2]
[353566008,1739917832900,-500.0,0.00013698,2]
[353566009,1739917832910,-500.0,0.00013698,2]
[353566010,1739917832921,-500.0,0.00013698,2]
[353566011,1739917832931,-500.0,0.00013698,2]
[353566012,1739917832940,-500.0,0.00013698,2]
[353566013,1739917832950,-620.0,0.00013698,2]
[353566014,1739917832959,-500.0,0.00013698,2]
[353566015,1739917832968,-500.0,0.00013698,2]
[353566016,1739917832977,-536.70751843,0.00013698,2]
[353566017,1739917832987,-639.26932728,0.00013698,2]
[353566018,1739917832996,-500.0,0.00013698,2]
[353566019,1739917833006,-500.0,0.00013698,2]
[353566020,1739917833015,-500.0,0.00013698,2]
[353566021,1739917833024,-500.0,0.00013698,2]
[353566022,1739917833033,-500.0,0.00013698,2]
[353566023,1739917833043,-615.44603222,0.00013698,2]
[353566024,1739917833052,-500.0,0.00013698,2]
[353566025,1739917833062,-500.0,0.00013698,2]
[353566026,1739917833072,-500.0,0.00013698,2]
[353566027,1739917833082,-245.46080476,0.00013698,2]
[353566028,1739917833091,-500.0,0.00013698,2]
[353566029,1739917833101,-500.0,0.00013698,2]
[353566030,1739917833111,-500.0,0.00013698,2]
[353566031,1739917833120,-500.0,0.00013698,2]
[353566032,1739917833130,-500.0,0.00013698,2]
[353566033,1739917833139,-500.0,0.00013698,2]
[353566034,1739917833149,-500.0,0.00013698,2]
[353566035,1739917833159,-1383.42,0.00013698,2]
[353566036,1739917833169,-500.0,0.00013698,2]
[353566037,1739917833179,-500.0,0.00013698,2]
[353566038,1739917833188,-500.0,0.00013698,2]
[353566039,1739917833198,-500.0,0.00013698,2]
[353566040,1739917833207,-500.0,0.00013698,2]
[353566041,1739917833216,-504.22924463,0.00013698,2]
[353566042,1739917833225,-500.0,0.00013698,2]
[353566043,1739917833235,-500.0,0.00013698,2]
[353566044,1739917833244,-500.0,0.00013698,2]
[353566045,1739917833256,-500.0,0.00013698,2]
[353566046,1739917833266,-500.0,0.00013698,2]
[353566047,1739917833276,-500.0,0.00013698,2]
[353566048,1739917833286,-500.0,0.00013698,2]
[353566049,1739917833295,-500.0,0.00013698,2]